[Event "Early-Titled-Tuesday-Blitz-February-27-2024"]
[Site "Chess.com"]
[Date "2024.02.27"]
[Round "11"]
[White "kai_nov"]
[Black "MikeSailer"]
[Result "1-0"]
[WhiteElo "2328"]
[BlackElo "2176"]
[TimeControl "180+1"]
[EndTime "10:07:21 PST"]
[Termination "kai_nov won on time"]

1. e4 {[%clk 0:02:52]} 1... d5 {[%clk 0:02:58.5]} 2. exd5 {[%clk 0:02:51.4]}
2... Qxd5 {[%clk 0:02:58.4]} 3. Nc3 {[%clk 0:02:52.3]} 3... Qd6 {[%clk
0:02:58.5]} 4. Nf3 {[%clk 0:02:51.5]} 4... c6 {[%clk 0:02:57.7]} 5. d4 {[%clk
0:02:50.3]} 5... Bg4 {[%clk 0:02:48.3]} 6. Be2 {[%clk 0:02:49.7]} 6... Nf6
{[%clk 0:02:41.4]} 7. h3 {[%clk 0:02:49.3]} 7... Bxf3 {[%clk 0:02:39.5]} 8. Bxf3
{[%clk 0:02:43.3]} 8... e6 {[%clk 0:02:39.8]} 9. O-O {[%clk 0:02:34.5]} 9...
Nbd7 {[%clk 0:02:37.3]} 10. Bg5 {[%clk 0:02:27.4]} 10... Qc7 {[%clk 0:02:36.1]}
11. Re1 {[%clk 0:02:23.4]} 11... Bd6 {[%clk 0:02:35.4]} 12. d5 {[%clk
0:02:18.8]} 12... Nxd5 {[%clk 0:02:31.1]} 13. Bxd5 {[%clk 0:02:15.5]} 13... cxd5
{[%clk 0:02:29.8]} 14. Nxd5 {[%clk 0:02:13.8]} 14... Qc5 {[%clk 0:02:17.4]} 15.
b4 {[%clk 0:01:55.7]} 15... Qc6 {[%clk 0:02:07.1]} 16. Ne3 {[%clk 0:01:30.9]}
16... O-O {[%clk 0:02:04.2]} 17. b5 {[%clk 0:01:28.5]} 17... Qc5 {[%clk
0:02:01.4]} 18. Bh4 {[%clk 0:01:19.7]} 18... Nb6 {[%clk 0:01:57.4]} 19. a4
{[%clk 0:01:17.1]} 19... Bf4 {[%clk 0:01:51.7]} 20. Qf3 {[%clk 0:01:13.1]} 20...
Bxe3 {[%clk 0:01:45.2]} 21. Qxe3 {[%clk 0:01:10.6]} 21... Qxc2 {[%clk
0:01:39.5]} 22. Qg3 {[%clk 0:01:04.6]} 22... Nd5 {[%clk 0:01:32.9]} 23. Re5
{[%clk 0:00:55.7]} 23... Rac8 {[%clk 0:01:23.3]} 24. Rg5 {[%clk 0:00:54.1]}
24... g6 {[%clk 0:01:18.2]} 25. Re1 {[%clk 0:00:49.6]} 25... Qc3 {[%clk
0:01:11]} 26. Rge5 {[%clk 0:00:45.5]} 26... Qxg3 {[%clk 0:01:09.5]} 27. Bxg3
{[%clk 0:00:44.1]} 27... Rc4 {[%clk 0:01:06.2]} 28. a5 {[%clk 0:00:42]} 28...
Rfc8 {[%clk 0:01:05.1]} 29. Rb1 {[%clk 0:00:38.8]} 29... Rc1+ {[%clk 0:01:02.4]}
30. Rxc1 {[%clk 0:00:37.2]} 30... Rxc1+ {[%clk 0:01:02.5]} 31. Kh2 {[%clk
0:00:37.1]} 31... Rc5 {[%clk 0:00:58.9]} 32. b6 {[%clk 0:00:29]} 32... axb6
{[%clk 0:00:57.6]} 33. axb6 {[%clk 0:00:28.7]} 33... Rb5 {[%clk 0:00:57.3]} 34.
Re4 {[%clk 0:00:23.9]} 34... Rxb6 {[%clk 0:00:56.7]} 35. Rc4 {[%clk 0:00:23.8]}
35... Rc6 {[%clk 0:00:56]} 36. Rd4 {[%clk 0:00:22]} 36... b5 {[%clk 0:00:55.3]}
37. Be5 {[%clk 0:00:20.7]} 37... Rc4 {[%clk 0:00:54.9]} 38. Rd2 {[%clk
0:00:20.1]} 38... b4 {[%clk 0:00:51.1]} 39. Ra2 {[%clk 0:00:19.9]} 39... Rc8
{[%clk 0:00:43.6]} 40. Rb2 {[%clk 0:00:19]} 40... h6 {[%clk 0:00:40.2]} 41. Bd6
{[%clk 0:00:19.1]} 41... Rc4 {[%clk 0:00:37.5]} 42. Be5 {[%clk 0:00:19]} 42...
g5 {[%clk 0:00:34.7]} 43. Ra2 {[%clk 0:00:17.1]} 43... Kh7 {[%clk 0:00:32.8]}
44. Ra8 {[%clk 0:00:12.8]} 44... Kg6 {[%clk 0:00:31.9]} 45. g4 {[%clk
0:00:12.9]} 45... f6 {[%clk 0:00:27.1]} 46. Bg3 {[%clk 0:00:12.7]} 46... e5
{[%clk 0:00:24.4]} 47. Rg8+ {[%clk 0:00:11]} 47... Kf7 {[%clk 0:00:24.3]} 48.
Rd8 {[%clk 0:00:11.1]} 48... Nf4 {[%clk 0:00:22.4]} 49. Bxf4 {[%clk 0:00:10]}
49... exf4 {[%clk 0:00:18.3]} 50. Rd7+ {[%clk 0:00:10.1]} 50... Ke6 {[%clk
0:00:17.6]} 51. Rb7 {[%clk 0:00:08.7]} 51... Ke5 {[%clk 0:00:15.8]} 52. Kg2
{[%clk 0:00:09]} 52... f5 {[%clk 0:00:11.4]} 53. Rb5+ {[%clk 0:00:08.4]} 53...
Ke4 {[%clk 0:00:10.8]} 54. gxf5 {[%clk 0:00:09]} 54... f3+ {[%clk 0:00:09.5]}
55. Kg3 {[%clk 0:00:08.9]} 55... h5 {[%clk 0:00:09.9]} 56. f6 {[%clk 0:00:09.1]}
56... Rc6 {[%clk 0:00:04.7]} 57. Rxb4+ {[%clk 0:00:07.7]} 57... Kf5 {[%clk
0:00:05.3]} 58. f7 {[%clk 0:00:07.8]} 58... Rf6 {[%clk 0:00:03.8]} 59. Rb5+
{[%clk 0:00:07.9]} 59... Kg6 {[%clk 0:00:03.6]} 60. Rb6 {[%clk 0:00:05.9]} 60...
Kxf7 {[%clk 0:00:02.2]} 61. Rxf6+ {[%clk 0:00:06.2]} 61... Kxf6 {[%clk
0:00:02.4]} 62. Kxf3 {[%clk 0:00:06.9]} 62... Kf5 {[%clk 0:00:02.7]} 63. Kg3
{[%clk 0:00:07.3]} 63... h4+ {[%clk 0:00:01.8]} 64. Kf3 {[%clk 0:00:07.5]} 1-0

[Event "Early-Titled-Tuesday-Blitz-February-27-2024"]
[Site "Chess.com"]
[Date "2024.02.27"]
[Round "11"]
[White "Sam_ChessMood"]
[Black "starworld123"]
[Result "1-0"]
[WhiteElo "2955"]
[BlackElo "2853"]
[TimeControl "180+1"]
[EndTime "10:07:26 PST"]
[Termination "Sam_ChessMood won by resignation"]

1. d4 {[%clk 0:03:00.2]} 1... d5 {[%clk 0:02:57.2]} 2. c4 {[%clk 0:03:00.4]}
2... e6 {[%clk 0:02:57]} 3. Nc3 {[%clk 0:03:00.3]} 3... a6 {[%clk 0:02:57.3]} 4.
cxd5 {[%clk 0:02:59.9]} 4... exd5 {[%clk 0:02:58.2]} 5. Nf3 {[%clk 0:03:00.2]}
5... Nf6 {[%clk 0:02:58.5]} 6. Bg5 {[%clk 0:02:57.8]} 6... Be6 {[%clk
0:02:58.5]} 7. e3 {[%clk 0:02:57.8]} 7... Nbd7 {[%clk 0:02:57.7]} 8. Bd3 {[%clk
0:02:57.9]} 8... h6 {[%clk 0:02:56]} 9. Bh4 {[%clk 0:02:55.1]} 9... g5 {[%clk
0:02:56.6]} 10. Bg3 {[%clk 0:02:55.4]} 10... Nh5 {[%clk 0:02:57.4]} 11. Be5
{[%clk 0:02:54.4]} 11... Ng7 {[%clk 0:02:57.7]} 12. Bg3 {[%clk 0:02:47.9]} 12...
Nh5 {[%clk 0:02:57.4]} 13. Qc2 {[%clk 0:02:47.6]} 13... Nxg3 {[%clk 0:02:56.5]}
14. hxg3 {[%clk 0:02:48.1]} 14... Bg7 {[%clk 0:02:44.4]} 15. O-O-O {[%clk
0:02:46.2]} 15... c6 {[%clk 0:02:26.7]} 16. Kb1 {[%clk 0:02:46.1]} 16... Qe7
{[%clk 0:02:08.2]} 17. Bf5 {[%clk 0:02:44.3]} 17... O-O-O {[%clk 0:02:03.4]} 18.
g4 {[%clk 0:02:43.9]} 18... Kb8 {[%clk 0:02:01.4]} 19. Ne2 {[%clk 0:02:41.3]}
19... Nf6 {[%clk 0:01:48.1]} 20. Ne5 {[%clk 0:02:37.9]} 20... c5 {[%clk
0:01:34.9]} 21. Bxe6 {[%clk 0:02:09.5]} 21... Qxe6 {[%clk 0:01:34.7]} 22. f3
{[%clk 0:01:52.5]} 22... Nd7 {[%clk 0:01:13.3]} 23. Nxd7+ {[%clk 0:01:46.5]}
23... Rxd7 {[%clk 0:01:14.2]} 24. dxc5 {[%clk 0:01:40.1]} 24... Qxe3 {[%clk
0:01:11.4]} 25. Ng3 {[%clk 0:01:39.7]} 25... Qe5 {[%clk 0:00:50.9]} 26. Nf5
{[%clk 0:01:38.1]} 26... Rc8 {[%clk 0:00:46.7]} 27. Rhe1 {[%clk 0:01:22.7]}
27... Qf6 {[%clk 0:00:41.9]} 28. Nxg7 {[%clk 0:01:21.2]} 28... Qxg7 {[%clk
0:00:42.8]} 29. Qf5 {[%clk 0:01:21.5]} 29... Rcd8 {[%clk 0:00:35.7]} 30. Qe5+
{[%clk 0:01:10.6]} 30... Qxe5 {[%clk 0:00:24.1]} 31. Rxe5 {[%clk 0:01:11.5]}
31... Kc7 {[%clk 0:00:21.6]} 32. Kc2 {[%clk 0:01:03.3]} 32... Kc6 {[%clk
0:00:20.3]} 33. b4 {[%clk 0:01:03]} 33... a5 {[%clk 0:00:20.3]} 34. a3 {[%clk
0:01:03.3]} 34... axb4 {[%clk 0:00:20.8]} 35. axb4 {[%clk 0:01:03.3]} 35... b6
{[%clk 0:00:19.2]} 36. cxb6 {[%clk 0:01:03.3]} 36... Kxb6 {[%clk 0:00:20.1]} 37.
Rd4 {[%clk 0:01:00.6]} 37... Kb5 {[%clk 0:00:19]} 38. Kb3 {[%clk 0:00:58.4]}
38... Rd6 {[%clk 0:00:18.7]} 39. Re7 {[%clk 0:00:56]} 39... R8d7 {[%clk
0:00:18.8]} 40. Re5 {[%clk 0:00:45.4]} 40... f6 {[%clk 0:00:15]} 41. Re8 {[%clk
0:00:45.6]} 41... Rc6 {[%clk 0:00:10.6]} 42. Rb8+ {[%clk 0:00:44]} 42... Rb6
{[%clk 0:00:11.1]} 43. Ra8 {[%clk 0:00:40.4]} 43... Ra6 {[%clk 0:00:08.9]} 44.
Rxa6 {[%clk 0:00:40]} 44... Kxa6 {[%clk 0:00:09.8]} 45. Kc3 {[%clk 0:00:39.1]}
45... Kb5 {[%clk 0:00:09.5]} 46. Rd2 {[%clk 0:00:38.6]} 46... Rc7+ {[%clk
0:00:08.7]} 47. Kd4 {[%clk 0:00:38.2]} 47... Kxb4 {[%clk 0:00:08.5]} 48. Re2
{[%clk 0:00:36.7]} 48... Kb3 {[%clk 0:00:03.6]} 49. Kxd5 {[%clk 0:00:34.9]}
49... Kc3 {[%clk 0:00:02.9]} 50. Ke6 {[%clk 0:00:33.6]} 50... Rc6+ {[%clk
0:00:02.3]} 51. Kf5 {[%clk 0:00:31.6]} 51... Kd3 {[%clk 0:00:02.1]} 52. Re6
{[%clk 0:00:28.5]} 52... Rc2 {[%clk 0:00:01.8]} 53. Kxf6 {[%clk 0:00:22.3]}
53... Rxg2 {[%clk 0:00:02.3]} 54. Kg7 {[%clk 0:00:22.7]} 54... Rg3 {[%clk
0:00:02.2]} 55. Kxh6 {[%clk 0:00:22.3]} 55... Rxf3 {[%clk 0:00:02.3]} 56. Kxg5
{[%clk 0:00:22.6]} 56... Rf8 {[%clk 0:00:03]} 57. Kh5 {[%clk 0:00:16.5]} 57...
Rh8+ {[%clk 0:00:03.2]} 58. Rh6 {[%clk 0:00:16.8]} 58... Rg8 {[%clk 0:00:03.2]}
59. g5 {[%clk 0:00:15.7]} 59... Ke4 {[%clk 0:00:03.5]} 60. Re6+ {[%clk
0:00:15.3]} 60... Kf5 {[%clk 0:00:02.2]} 61. Rf6+ {[%clk 0:00:15.7]} 61... Ke5
{[%clk 0:00:02.8]} 62. Kh6 {[%clk 0:00:15]} 62... Rh8+ {[%clk 0:00:02.4]} 63.
Kg7 {[%clk 0:00:15.3]} 63... Rh5 {[%clk 0:00:03.2]} 64. g6 {[%clk 0:00:15.6]}
64... Rh2 {[%clk 0:00:02.4]} 65. Rf1 {[%clk 0:00:15.4]} 65... Rg2 {[%clk
0:00:01.3]} 66. Kh7 {[%clk 0:00:15.5]} 66... Rh2+ {[%clk 0:00:02]} 67. Kg8
{[%clk 0:00:15.8]} 67... Ke6 {[%clk 0:00:02.8]} 68. g7 {[%clk 0:00:15.8]} 68...
Ke7 {[%clk 0:00:03.7]} 69. Rf4 {[%clk 0:00:14.2]} 69... Rh1 {[%clk 0:00:03.9]}
70. Re4+ {[%clk 0:00:13.6]} 70... Kf6 {[%clk 0:00:04.7]} 71. Kf8 {[%clk
0:00:13.2]} 71... Ra1 {[%clk 0:00:05.6]} 72. g8=Q {[%clk 0:00:12.9]} 72... Ra8+
{[%clk 0:00:05.8]} 73. Re8 {[%clk 0:00:13.2]} 73... Ra7 {[%clk 0:00:05.5]} 74.
Qe6+ {[%clk 0:00:12.1]} 1-0

[Event "Early-Titled-Tuesday-Blitz-February-27-2024"]
[Site "Chess.com"]
[Date "2024.02.27"]
[Round "11"]
[White "1977Ivan"]
[Black "Kunalm64"]
[Result "1-0"]
[WhiteElo "2734"]
[BlackElo "2594"]
[TimeControl "180+1"]
[EndTime "10:07:27 PST"]
[Termination "1977Ivan won on time"]

1. d4 {[%clk 0:02:57.3]} 1... Nf6 {[%clk 0:02:59.5]} 2. Nf3 {[%clk 0:02:56.8]}
2... e6 {[%clk 0:02:59.9]} 3. Bg5 {[%clk 0:02:56.7]} 3... h6 {[%clk 0:02:59.4]}
4. Bh4 {[%clk 0:02:56.8]} 4... d6 {[%clk 0:02:35.5]} 5. Nbd2 {[%clk 0:02:55.7]}
5... g5 {[%clk 0:02:32.4]} 6. Bg3 {[%clk 0:02:55.8]} 6... Nh5 {[%clk 0:02:32.4]}
7. e4 {[%clk 0:02:53.8]} 7... Bg7 {[%clk 0:02:31.3]} 8. c3 {[%clk 0:02:54]} 8...
Nd7 {[%clk 0:02:30]} 9. Nc4 {[%clk 0:02:50.3]} 9... Nb6 {[%clk 0:02:23]} 10. Ne3
{[%clk 0:02:43.7]} 10... Nd7 {[%clk 0:02:18.3]} 11. Nd2 {[%clk 0:02:28]} 11...
Nxg3 {[%clk 0:02:16.7]} 12. hxg3 {[%clk 0:02:28.9]} 12... a6 {[%clk 0:02:14]}
13. Bd3 {[%clk 0:02:25.5]} 13... b5 {[%clk 0:02:13.4]} 14. a4 {[%clk 0:02:23.7]}
14... bxa4 {[%clk 0:02:09.2]} 15. f4 {[%clk 0:02:22.6]} 15... c5 {[%clk
0:02:05.9]} 16. Ndc4 {[%clk 0:02:16.8]} 16... O-O {[%clk 0:02:03.8]} 17. e5
{[%clk 0:02:11.8]} 17... cxd4 {[%clk 0:02:02.2]} 18. cxd4 {[%clk 0:02:12.7]}
18... dxe5 {[%clk 0:02:02.3]} 19. fxe5 {[%clk 0:02:01]} 19... Rb8 {[%clk
0:01:35.5]} 20. Bc2 {[%clk 0:01:58.5]} 20... Nb6 {[%clk 0:01:18.7]} 21. Qd3
{[%clk 0:01:57.9]} 21... f5 {[%clk 0:00:51.5]} 22. exf6 {[%clk 0:01:58.8]} 22...
Rxf6 {[%clk 0:00:51.5]} 23. Ne5 {[%clk 0:01:58.3]} 23... Nd5 {[%clk 0:00:40.3]}
24. Nc6 {[%clk 0:01:40.6]} 24... Qd6 {[%clk 0:00:23]} 25. Nxd5 {[%clk
0:01:39.7]} 25... exd5 {[%clk 0:00:18.7]} 26. Nxb8 {[%clk 0:01:39.1]} 26... Qxb8
{[%clk 0:00:18]} 27. O-O-O {[%clk 0:01:38.8]} 27... Bf5 {[%clk 0:00:17.7]} 28.
Qc3 {[%clk 0:01:34.2]} 28... Bxc2 {[%clk 0:00:17.5]} 29. Qxc2 {[%clk 0:01:35.1]}
29... Qb7 {[%clk 0:00:17]} 30. Kb1 {[%clk 0:01:33.2]} 30... a3 {[%clk
0:00:16.8]} 31. Ka2 {[%clk 0:01:23.2]} 31... axb2 {[%clk 0:00:16.2]} 32. Rb1
{[%clk 0:00:52.7]} 32... Qb4 {[%clk 0:00:16.1]} 33. Qb3 {[%clk 0:00:42.2]} 33...
Qa5+ {[%clk 0:00:15.8]} 34. Qa3 {[%clk 0:00:42.3]} 34... Qb5 {[%clk 0:00:14]}
35. Rxb2 {[%clk 0:00:40.4]} 35... Qc4+ {[%clk 0:00:14.2]} 36. Qb3 {[%clk
0:00:40.2]} 36... Qxd4 {[%clk 0:00:14.3]} 37. Rd1 {[%clk 0:00:39.8]} 37... Qe4
{[%clk 0:00:13.6]} 38. Qxd5+ {[%clk 0:00:39.2]} 38... Qxd5+ {[%clk 0:00:13.6]}
39. Rxd5 {[%clk 0:00:40.1]} 39... Kh7 {[%clk 0:00:12.9]} 40. Rc2 {[%clk
0:00:39.8]} 40... Kg6 {[%clk 0:00:12.7]} 41. Rd7 {[%clk 0:00:38.9]} 41... Rf7
{[%clk 0:00:12.2]} 42. Rxf7 {[%clk 0:00:38.3]} 42... Kxf7 {[%clk 0:00:12.2]} 43.
Rc6 {[%clk 0:00:37.7]} 43... h5 {[%clk 0:00:11.5]} 44. g4 {[%clk 0:00:37]} 44...
hxg4 {[%clk 0:00:10.8]} 45. Rxa6 {[%clk 0:00:37.2]} 45... Be5 {[%clk 0:00:10.3]}
46. Kb3 {[%clk 0:00:38.1]} 46... g3 {[%clk 0:00:10.1]} 47. Kc4 {[%clk 0:00:39]}
47... Bf4 {[%clk 0:00:10]} 48. Kd5 {[%clk 0:00:39.9]} 48... Ke7 {[%clk
0:00:10.2]} 49. Ke4 {[%clk 0:00:40.1]} 49... Kd7 {[%clk 0:00:10.5]} 50. Kf5
{[%clk 0:00:39.2]} 50... Ke7 {[%clk 0:00:10.7]} 51. Re6+ {[%clk 0:00:37.6]}
51... Kf7 {[%clk 0:00:10.7]} 52. Re4 {[%clk 0:00:37.7]} 52... Kg7 {[%clk
0:00:10.7]} 53. Re7+ {[%clk 0:00:37]} 53... Kf8 {[%clk 0:00:10.6]} 54. Kf6
{[%clk 0:00:36.9]} 54... Kg8 {[%clk 0:00:10.7]} 55. Re8+ {[%clk 0:00:34.7]}
55... Kh7 {[%clk 0:00:10.7]} 56. Rc8 {[%clk 0:00:33.4]} 56... Be3 {[%clk
0:00:10.1]} 57. Rc7+ {[%clk 0:00:31.2]} 57... Kg8 {[%clk 0:00:08.9]} 58. Kg6
{[%clk 0:00:31.6]} 58... Kf8 {[%clk 0:00:08.7]} 59. Rf7+ {[%clk 0:00:30.2]}
59... Ke8 {[%clk 0:00:08.5]} 60. Rf5 {[%clk 0:00:25.9]} 60... Bf4 {[%clk
0:00:08.4]} 61. Kg7 {[%clk 0:00:17.3]} 61... Ke7 {[%clk 0:00:08.5]} 62. Rb5
{[%clk 0:00:15.5]} 62... Ke6 {[%clk 0:00:08.6]} 63. Kg6 {[%clk 0:00:15.7]} 63...
Ke7 {[%clk 0:00:08.8]} 64. Rb4 {[%clk 0:00:13.3]} 64... Ke6 {[%clk 0:00:09]} 65.
Re4+ {[%clk 0:00:13.1]} 65... Kd5 {[%clk 0:00:08.4]} 66. Re8 {[%clk 0:00:13]}
66... Kd6 {[%clk 0:00:07.9]} 67. Kf5 {[%clk 0:00:13.9]} 67... Kd7 {[%clk
0:00:08]} 68. Re4 {[%clk 0:00:13.3]} 68... Bc1 {[%clk 0:00:04.2]} 69. Rg4 {[%clk
0:00:11.6]} 69... Ke7 {[%clk 0:00:02.2]} 70. Rxg3 {[%clk 0:00:11.1]} 70... Kf7
{[%clk 0:00:02.8]} 71. Rb3 {[%clk 0:00:10.6]} 71... Kg7 {[%clk 0:00:02]} 72.
Rb7+ {[%clk 0:00:11.2]} 72... Kg8 {[%clk 0:00:01.3]} 73. g4 {[%clk 0:00:11.2]}
1-0

[Event "Early-Titled-Tuesday-Blitz-February-27-2024"]
[Site "Chess.com"]
[Date "2024.02.27"]
[Round "11"]
[White "blitzking1729"]
[Black "Rud_Makarian"]
[Result "0-1"]
[WhiteElo "2750"]
[BlackElo "3088"]
[TimeControl "180+1"]
[EndTime "10:07:29 PST"]
[Termination "Rud_Makarian won by checkmate"]

1. c4 {[%clk 0:03:00.9]} 1... e6 {[%clk 0:02:57.4]} 2. Nf3 {[%clk 0:02:59.9]}
2... d5 {[%clk 0:02:57.8]} 3. e3 {[%clk 0:03:00]} 3... Nf6 {[%clk 0:02:58.4]} 4.
Nc3 {[%clk 0:03:00.6]} 4... dxc4 {[%clk 0:02:58.7]} 5. Bxc4 {[%clk 0:03:00.3]}
5... a6 {[%clk 0:02:59.4]} 6. d4 {[%clk 0:02:59.4]} 6... b5 {[%clk 0:02:59.4]}
7. Bb3 {[%clk 0:03:00.1]} 7... c5 {[%clk 0:02:59.7]} 8. O-O {[%clk 0:02:45.3]}
8... Bb7 {[%clk 0:02:59.5]} 9. dxc5 {[%clk 0:02:43.8]} 9... Qxd1 {[%clk
0:02:52]} 10. Rxd1 {[%clk 0:02:35.4]} 10... Bxc5 {[%clk 0:02:52.6]} 11. a4
{[%clk 0:02:32.3]} 11... b4 {[%clk 0:02:50.4]} 12. Ne2 {[%clk 0:02:32.2]} 12...
O-O {[%clk 0:02:49.6]} 13. Bd2 {[%clk 0:02:32.2]} 13... Nbd7 {[%clk 0:02:41.6]}
14. Rac1 {[%clk 0:02:27.8]} 14... Rac8 {[%clk 0:02:41.4]} 15. Ned4 {[%clk
0:02:23.7]} 15... a5 {[%clk 0:02:36.2]} 16. Be1 {[%clk 0:02:20.8]} 16... Rfd8
{[%clk 0:02:34]} 17. h3 {[%clk 0:01:53.3]} 17... h6 {[%clk 0:02:22.3]} 18. Bc4
{[%clk 0:01:50]} 18... Be7 {[%clk 0:02:02.7]} 19. Bb5 {[%clk 0:01:26.7]} 19...
Nc5 {[%clk 0:02:01.5]} 20. Ne5 {[%clk 0:01:25.5]} 20... Rc7 {[%clk 0:01:23.3]}
21. Ndc6 {[%clk 0:00:41.4]} 21... Rxd1 {[%clk 0:01:20.8]} 22. Rxd1 {[%clk
0:00:40.6]} 22... Bxc6 {[%clk 0:01:14.8]} 23. Nxc6 {[%clk 0:00:38.1]} 23... Nb7
{[%clk 0:01:12.1]} 24. f3 {[%clk 0:00:34.7]} 24... Bc5 {[%clk 0:00:49.8]} 25.
Bf2 {[%clk 0:00:23.2]} 25... Nd5 {[%clk 0:00:40.7]} 26. e4 {[%clk 0:00:23.2]}
26... Nb6 {[%clk 0:00:38.1]} 27. Bxc5 {[%clk 0:00:20.6]} 27... Nxc5 {[%clk
0:00:39]} 28. Nxa5 {[%clk 0:00:18.1]} 28... Nbxa4 {[%clk 0:00:32.6]} 29. Rd2
{[%clk 0:00:14.1]} 29... Nb6 {[%clk 0:00:24.8]} 30. Nc6 {[%clk 0:00:12.4]} 30...
b3 {[%clk 0:00:21.8]} 31. Rd8+ {[%clk 0:00:12.2]} 31... Kh7 {[%clk 0:00:21.9]}
32. Kf2 {[%clk 0:00:11.7]} 32... g5 {[%clk 0:00:22]} 33. Ke3 {[%clk 0:00:09.6]}
33... Nca4 {[%clk 0:00:20.9]} 34. Rd2 {[%clk 0:00:08.1]} 34... Nxb2 {[%clk
0:00:13.3]} 35. Rxb2 {[%clk 0:00:06.6]} 35... Rxc6 {[%clk 0:00:14]} 36. Rxb3
{[%clk 0:00:06.4]} 36... Rc7 {[%clk 0:00:11.9]} 37. Bd3 {[%clk 0:00:05.2]} 37...
Nd7 {[%clk 0:00:11.7]} 38. Ra3 {[%clk 0:00:05.2]} 38... Kg7 {[%clk 0:00:12.3]}
39. g3 {[%clk 0:00:05.1]} 39... Rc1 {[%clk 0:00:09.4]} 40. f4 {[%clk 0:00:04.8]}
40... Rh1 {[%clk 0:00:09.5]} 41. Ra7 {[%clk 0:00:03.7]} 41... Nf6 {[%clk
0:00:08.4]} 42. Bc4 {[%clk 0:00:03]} 42... Re1+ {[%clk 0:00:09]} 43. Kf3 {[%clk
0:00:02.9]} 43... Rxe4 {[%clk 0:00:09.5]} 44. Bd3 {[%clk 0:00:02.9]} 44... Rd4
{[%clk 0:00:09.8]} 45. Bc2 {[%clk 0:00:03.2]} 45... gxf4 {[%clk 0:00:10.2]} 46.
gxf4 {[%clk 0:00:03.6]} 46... Rc4 {[%clk 0:00:09.7]} 47. Bb1 {[%clk 0:00:03]}
47... Rb4 {[%clk 0:00:09.7]} 48. Ba2 {[%clk 0:00:03.2]} 48... Re4 {[%clk
0:00:05.6]} 49. f5 {[%clk 0:00:03.3]} 49... exf5 {[%clk 0:00:05.8]} 50. Rxf7+
{[%clk 0:00:03.1]} 50... Kg6 {[%clk 0:00:06.1]} 51. Ra7 {[%clk 0:00:03.6]} 51...
Rd4 {[%clk 0:00:04.7]} 52. Ra6 {[%clk 0:00:03.7]} 52... Kg5 {[%clk 0:00:04]} 53.
Ra5 {[%clk 0:00:04.3]} 53... Rd3+ {[%clk 0:00:04.3]} 54. Kg2 {[%clk 0:00:02.9]}
54... Kf4 {[%clk 0:00:02.6]} 55. Bb1 {[%clk 0:00:03.2]} 55... Rd2+ {[%clk
0:00:03.2]} 56. Kf1 {[%clk 0:00:02.1]} 56... Rd1+ {[%clk 0:00:02.9]} 57. Ke2
{[%clk 0:00:02.7]} 57... Rxb1 {[%clk 0:00:03.5]} 58. Ra4+ {[%clk 0:00:03.6]}
58... Ne4 {[%clk 0:00:03.9]} 59. Ra3 {[%clk 0:00:03.2]} 59... Rh1 {[%clk
0:00:04.3]} 60. Ra6 {[%clk 0:00:02.7]} 60... Rh2+ {[%clk 0:00:04.7]} 61. Kf1
{[%clk 0:00:03]} 61... Rxh3 {[%clk 0:00:04.3]} 62. Kg1 {[%clk 0:00:03.3]} 62...
h5 {[%clk 0:00:04.2]} 63. Kg2 {[%clk 0:00:03.7]} 63... Rg3+ {[%clk 0:00:04.4]}
64. Kh2 {[%clk 0:00:04.4]} 64... h4 {[%clk 0:00:05.1]} 65. Ra1 {[%clk
0:00:03.9]} 65... Ng5 {[%clk 0:00:05.1]} 66. Rf1+ {[%clk 0:00:04.1]} 66... Nf3+
{[%clk 0:00:05.6]} 67. Kh1 {[%clk 0:00:04.4]} 67... Rh3+ {[%clk 0:00:05.6]} 68.
Kg2 {[%clk 0:00:04.5]} 68... Rh2# {[%clk 0:00:06.5]} 0-1